bitfinex/quotes_ETHUSD_20220310
["timestamp","ask_amount","ask_price","bid_price","bid_amount"]
[1646870736227,0.91503,2734.9,2733.8,0.08412667]
[1646870736425,1.43310166,2734.8,2733.8,0.08412667]
[1646870736626,2.74549,2734.7,2733.8,0.08412667]
[1646870736833,3.439,2734.6,2733.8,0.08412667]
[1646870737028,3.739,2734.6,2733.8,0.08412667]
[1646870737225,7.5107,2734.6,2733.8,0.08412667]
[1646870737425,1.11682322,2734.2,2733.8,2.667e-05]
[1646870737626,3.0,2734.4,2733.8,2.667e-05]
[1646870737627,0.439,2734.1,2733.8,2.667e-05]
[1646870737825,2.74596,2734.3,2733.8,2.667e-05]
[1646870738028,0.3,2734.1,2733.8,2.667e-05]
[1646870738224,3.74596,2734.3,2733.8,2.667e-05]
[1646870738225,0.439,2734.0,2733.8,2.667e-05]
[1646870738425,3.74596,2734.3,2733.8,2.667e-05]
[1646870738426,0.439,2733.9,2733.8,2.667e-05]
[1646870738826,0.739,2733.9,2733.8,2.667e-05]
[1646870739242,2.74647,2733.7,2732.8,0.029168]
[1646870739437,0.439,2733.6,2732.3,0.029168]
[1646870739685,0.439,2733.6,2732.4,1.52044087]
[1646870739686,0.5,2733.5,2732.4,1.52044087]
[1646870739885,0.439,2733.4,2732.4,1.52044087]
[1646870740081,0.97901204,2732.7,2732.4,1.52044087]
[1646870740303,1.83105,2733.2,2733.0,0.6428771]
[1646870740493,0.439,2733.1,2733.0,0.6428771]
[1646870741489,2.48357764,2733.1,2733.0,0.6428771]
[1646870741881,3.4,2733.0,2732.5,0.029168]
[1646870742088,1.83136,2732.8,2731.9,0.029168]
[1646870742286,0.439,2732.7,2732.0,1.52056219]
[1646870742784,0.739,2732.7,2732.0,1.52056219]
[1646870742984,0.93287685,2732.3,2732.0,1.52056219]
[1646870743183,1.37187685,2732.3,2732.0,1.52056219]
[1646870743422,1.37187685,2732.3,2732.1,1.52056219]
[1646870743823,1.37187685,2732.3,2731.9,1.54973019]
[1646870744024,1.37187685,2732.3,2732.0,1.52056219]
[1646870744423,2.28754685,2732.3,2732.0,1.52056219]
[1646870745926,1.35467,2732.3,2732.0,1.52056219]
[1646870746126,1.35467,2732.3,2731.9,0.3]
[1646870746329,0.439,2732.3,2732.1,0.029168]
[1646870746529,5.9625,2733.2,2732.2,1.54968433]
[1646870746727,2.74683,2733.3,2732.8,0.029168]
[1646870746728,3.18583,2733.3,2732.8,0.029168]
[1646870747082,0.97538621,2733.2,2732.8,0.029168]
[1646870747275,1.41438621,2733.2,2732.8,0.029168]
[1646870747474,1.41438621,2733.2,2732.7,0.029168]
[1646870748072,2.32976621,2733.2,2732.7,0.029168]
[1646870749071,0.06397895,2733.1,2732.5,0.029168]
[1646870749272,0.439,2733.0,2732.0,0.029168]
[1646870749474,0.06451,2732.7,2731.8,0.029168]
[1646870749676,0.06034441,2732.6,2732.0,0.029168]
[1646870750475,0.06034441,2732.6,2732.5,0.12891343]
[1646870751123,0.06034441,2732.6,2732.3,0.04194947]
[1646870751325,0.06537506,2732.5,2732.3,0.04194947]
[1646870751624,0.06537506,2732.5,2731.7,0.029168]
[1646870751625,3.4,2732.3,2731.7,0.029168]
[1646870751823,0.439,2732.2,2731.5,0.04314179]
[1646870752021,0.439,2732.2,2731.0,0.13819997]
[1646870752022,0.91598,2732.0,2731.4,0.029168]
[1646870752224,0.87885205,2731.7,2731.4,0.029168]
[1646870752426,0.05537323,2731.6,2731.5,0.01397312]
[1646870753321,0.916,2731.5,2731.3,0.18095205]
[1646870753522,0.07039039,2731.4,2731.3,0.18095205]
[1646870754222,0.07039039,2731.4,2731.3,0.15178405]
[1646870755085,0.07039039,2731.4,2731.2,7.349168]
[1646870756676,0.07039039,2731.4,2731.2,7.32]
[1646870757282,0.07039039,2731.4,2730.8,0.01394227]
[1646870757482,0.439,2731.3,2730.8,0.01394227]
[1646870757682,0.07207557,2731.2,2730.8,0.01394227]
[1646870758077,0.07207557,2731.2,2730.5,0.029168]
[1646870758336,0.06820294,2730.9,2730.5,0.04311305]
[1646870758537,0.06820294,2730.9,2730.5,0.01394505]
[1646870759238,0.06820294,2730.9,2730.4,0.029168]
[1646870759437,0.06820294,2730.9,2730.3,7.32]
[1646870759842,0.06820294,2730.9,2730.3,7.349168]
[1646870760142,6.47607898,2731.0,2730.3,7.349168]
[1646870760143,0.439,2730.8,2730.3,7.349168]
[1646870760365,1.87745177,2730.9,2730.8,0.80713276]
[1646870760544,5.81645177,2730.9,2730.0,0.029168]
[1646870760752,5.81645177,2730.9,2730.1,0.04311401]
[1646870760753,3.4,2730.8,2730.1,0.04311401]
[1646870761044,6.7715,2730.9,2730.1,0.01394601]
[1646870761045,0.05408911,2730.6,2730.1,0.01394601]
[1646870761242,0.439,2730.5,2730.1,0.01394601]
[1646870761444,0.96204417,2730.4,2730.1,0.01394601]
[1646870761643,0.96204417,2730.4,2729.8,0.029168]
[1646870761644,2.04410503,2730.3,2729.8,0.029168]
[1646870761844,2.04410503,2730.3,2729.1,9.22866989]
[1646870761845,0.48560123,2730.2,2729.7,0.029168]
[1646870762087,0.48560123,2730.2,2729.8,0.01394661]
[1646870762088,0.05123055,2730.1,2729.8,0.01394661]
[1646870762674,1.35545,2730.0,2729.8,0.01394661]
[1646870762879,1.35545,2730.0,2729.1,7.32]
[1646870762880,3.55769538,2729.9,2729.1,7.32]
[1646870763075,0.48708908,2729.8,2729.1,7.32]
[1646870763279,3.55206971,2729.7,2729.6,0.00348655]
[1646870763473,3.55206971,2729.7,2728.9,0.029168]
[1646870763474,0.9,2729.5,2728.9,0.029168]
[1646870763673,0.9,2729.5,2728.3,7.32]
[1646870763674,0.9636687,2729.3,2728.7,0.029168]
[1646870763874,0.9636687,2729.3,2728.3,7.32]
[1646870763875,0.05306327,2729.1,2728.5,0.029168]
[1646870764177,0.05306327,2729.1,2728.1,0.058336]
[1646870764178,0.439,2729.0,2728.1,0.058336]
[1646870764374,3.5,2728.9,2728.1,0.058336]
[1646870764575,0.439,2728.8,2728.1,0.058336]
[1646870764779,0.439,2728.8,2728.3,0.029168]
[1646870764780,1.8343,2728.7,2728.3,0.029168]
[1646870764979,0.98931804,2728.4,2728.2,0.029168]
[1646870765181,0.98931804,2728.4,2728.1,0.029168]
[1646870765382,0.439,2728.5,2728.1,0.029168]
[1646870765580,0.05225571,2728.4,2728.1,0.029168]
[1646870766030,0.439,2728.5,2728.2,0.029168]
[1646870766232,0.0535135,2729.1,2728.4,0.029168]
[1646870766430,1.02940802,2728.9,2728.7,0.029168]
[1646870766631,1.02940802,2728.9,2727.9,0.9167753]
[1646870766632,0.05594436,2728.8,2727.9,0.9167753]
[1646870766833,0.05594436,2728.8,2728.0,1.88977553]
[1646870767030,0.05594436,2728.8,2728.1,1.35372553]
[1646870767231,0.05594436,2728.8,2727.7,7.54994161]
[1646870767232,0.91688,2728.6,2727.7,7.54994161]
[1646870767431,0.06999022,2728.5,2727.7,7.32]
[1646870767850,0.05894836,2728.1,2727.7,7.32]
[1646870768035,0.06003992,2728.6,2728.3,1.34122557]
[1646870768233,1.83421,2728.4,2728.3,1.34122557]
[1646870768434,2.27321,2728.4,2728.3,1.34122557]
[1646870768631,2.27321,2728.4,2728.3,0.92479405]
[1646870768831,2.27321,2728.4,2728.3,0.8927813]
[1646870769031,4.41434692,2728.4,2728.3,0.8927813]
[1646870769432,5.41434692,2728.4,2728.3,0.8927813]
[1646870769680,2.66301692,2728.4,2728.3,0.8927813]
[1646870770077,1.66301692,2728.4,2728.3,0.8927813]
[1646870770280,1.66301692,2728.4,2728.3,0.94622655]
[1646870770281,2.66301692,2728.4,2728.3,0.94622655]
[1646870770482,1.66301692,2728.4,2728.3,0.94622655]
[1646870770682,1.439,2728.4,2728.3,0.94622655]
[1646870770877,0.439,2728.4,2728.3,0.94622655]
[1646870774029,0.9171,2728.5,2728.3,0.94622655]
[1646870774333,4.09668,2729.2,2728.5,0.06347256]
[1646870774932,1.83358,2729.2,2728.5,0.06347256]
[1646870775233,2.00843674,2729.0,2728.7,0.00358746]
[1646870776131,2.00843674,2729.0,2728.5,0.06347256]
[1646870776377,2.00843674,2729.0,2728.3,1.28945337]
[1646870776543,0.439,2728.9,2728.7,0.00358746]
[1646870776732,3.4,2728.8,2728.3,1.23839038]
[1646870776934,1.35617,2728.7,2728.3,1.23839038]
[1646870777185,1.35617,2728.7,2728.3,1.15790761]
[1646870777420,1.65617,2728.7,2728.3,1.14355563]
[1646870777580,1.02997259,2728.6,2728.3,1.14355563]
[1646870777784,1.02997259,2728.6,2727.3,0.98873331]
[1646870777785,0.9,2728.4,2727.3,0.98873331]
[1646870777998,0.9,2728.4,2727.1,0.00213094]
[1646870778000,0.91738,2727.9,2727.1,0.00213094]
[1646870778185,1.83475,2728.0,2726.7,0.00213094]
[1646870778186,3.939,2727.8,2726.7,0.00213094]
[1646870778386,0.439,2727.7,2726.5,7.32213094]
[1646870778583,0.439,2727.7,2726.5,0.00213094]
[1646870778784,0.88813279,2727.1,2726.3,1.75465366]
[1646870778984,0.439,2727.0,2726.6,0.04092649]
[1646870779187,1.35654,2727.0,2726.6,0.04092649]
[1646870779381,1.35654,2727.0,2726.4,0.04206334]
[1646870779782,1.35654,2727.0,2726.7,0.04035807]
[1646870779983,1.35654,2727.0,2726.5,0.04149492]
[1646870780182,1.35654,2727.0,2726.6,0.00369749]
[1646870780383,0.439,2726.9,2726.6,0.00369749]
[1646870780626,2.45539248,2727.1,2726.9,0.87799999]
[1646870780822,0.439,2727.0,2726.9,0.87799999]
[1646870781426,1.35654,2727.0,2726.9,0.8816973]
[1646870782023,1.40850127,2727.0,2726.9,0.8816973]
[1646870782224,1.40850127,2727.0,2726.9,0.87799999]
[1646870782424,4.90850127,2727.0,2726.9,0.87799999]
[1646870782630,4.90850127,2727.0,2726.8,0.00369734]
[1646870782631,3.4,2726.9,2726.8,0.00369734]
[1646870782842,7.339,2726.9,2726.8,0.00369734]
[1646870783024,5.90215466,2726.9,2726.8,0.00369734]
[1646870783226,3.4,2726.8,2726.4,0.01479159]
[1646870783425,0.96629246,2726.6,2725.9,0.68105266]
[1646870783630,0.96629246,2726.6,2725.8,0.67892172]
[1646870783631,0.439,2726.5,2725.8,0.67892172]
[1646870783825,0.439,2726.5,2725.6,0.90024634]
[1646870783826,1.83551,2726.4,2725.9,0.67892172]
[1646870784026,1.00523459,2726.2,2725.9,0.67892172]
[1646870784586,0.0539666,2726.1,2725.9,0.57892172]
[1646870784778,0.49291918,2726.7,2726.1,0.13297603]
[1646870784980,0.06024349,2726.6,2726.1,0.13297603]
[1646870785678,1.04752643,2726.5,2726.1,0.13297603]
[1646870785886,1.04752643,2726.5,2726.1,1.05048193]
[1646870786078,2.365268,2727.0,2726.2,0.00357537]
[1646870786079,0.91752,2726.9,2726.2,0.00357537]
[1646870786285,0.05416768,2727.1,2726.3,0.08030438]
[1646870786484,3.55416768,2727.1,2726.2,0.00357537]
[1646870786781,0.029168,2726.8,2726.2,0.00357537]
[1646870787078,0.029168,2726.8,2726.2,1.52300569]
[1646870787482,2.33069552,2726.7,2726.5,0.0035752]
[1646870787783,2.33069552,2726.7,2726.1,0.14727899]
[1646870787784,3.4,2726.5,2726.1,0.14727899]
[1646870787980,0.029168,2726.3,2725.5,0.00213094]
[1646870788181,0.029168,2726.3,2725.2,0.90024634]
[1646870788182,0.029168,2725.9,2725.2,0.00213094]
[1646870788437,0.439,2725.8,2725.0,0.90237728]
[1646870788626,0.439,2725.8,2724.8,0.98040999]
[1646870788627,1.16036024,2725.2,2724.8,0.98040999]
[1646870788830,1.16036024,2725.2,2724.8,0.97827905]
[1646870789029,1.16036024,2725.2,2724.7,0.90024634]
[1646870789030,1.20785449,2725.2,2724.7,0.90024634]
[1646870789229,1.20785449,2725.2,2724.6,0.90024634]
[1646870789230,0.49207057,2725.1,2724.6,0.90024634]
[1646870789433,2.0,2724.9,2724.3,1.38992462]
[1646870789632,2.0,2724.9,2724.3,0.03497744]
[1646870789633,0.96922734,2724.8,2724.3,0.03497744]
[1646870789831,1.14592813,2724.7,2724.3,0.03497744]
[1646870790030,0.05370959,2724.6,2724.3,0.03497744]
[1646870790630,1.6,2724.8,2724.3,0.03497744]
[1646870790631,1.09349965,2724.4,2724.3,0.03497744]
[1646870791730,0.91829,2724.5,2724.4,1.56756425]
[1646870792379,2.1812967,2724.5,2724.4,1.56756425]
[1646870792581,0.04195084,2724.3,2724.2,0.04443879]
[1646870792779,0.48095084,2724.3,2724.2,0.04443879]
[1646870792977,1.0,2724.2,2723.9,0.03716544]
[1646870793180,0.48293766,2724.1,2724.0,0.02867704]
[1646870793581,0.439,2724.1,2724.0,0.02867704]
[1646870793778,0.91863,2724.2,2724.0,0.02867704]
[1646870793978,2.83726,2724.3,2724.0,0.02867704]
[1646870793979,1.0,2724.3,2724.0,0.02867704]
[1646870794183,0.9630067,2724.5,2724.0,0.02867704]
[1646870795280,0.9630067,2724.5,2724.0,0.94687084]
[1646870795479,1.8812567,2724.5,2724.3,0.08608004]
[1646870796331,0.91825,2724.5,2724.3,0.08608004]
[1646870797132,3.38238994,2724.7,2724.3,0.08608004]
[1646870797133,0.54581994,2724.7,2724.3,0.08608004]
[1646870797531,0.54581994,2724.7,2724.4,0.07496069]
[1646870797733,0.54581994,2724.7,2724.3,0.08608004]
[1646870798131,1.1877798,2724.7,2724.3,0.08608004]
[1646870798331,0.91824,2724.6,2724.3,0.08608004]
[1646870799436,1.1877798,2724.7,2724.3,0.08608004]
[1646870799682,2.83655,2724.8,2724.3,0.08608004]
[1646870800181,1.83655,2724.8,2724.3,0.08608004]
[1646870800380,1.76580609,2724.8,2724.3,0.08608004]
[1646870800588,1.76843425,2724.9,2724.8,2.48508528]
[1646870800785,3.4,2724.8,2724.3,0.08608004]
[1646870800981,0.439,2724.7,2724.3,0.08608004]
[1646870801990,0.95375397,2724.6,2724.3,0.08608004]
[1646870802225,1.87222397,2724.6,2724.3,0.08608004]
[1646870804426,0.91847,2724.6,2724.3,0.08608004]
[1646870804634,0.91819,2724.8,2724.3,0.08608004]
[1646870805030,0.91819,2724.8,2724.3,0.82179515]
[1646870805231,0.91819,2724.8,2724.5,0.18325229]
[1646870806488,0.439,2725.1,2724.5,0.26956161]
[1646870806489,0.91811,2725.1,2724.5,0.26956161]
[1646870806634,0.91811,2725.1,2724.6,0.73543771]
[1646870806933,0.91811,2725.1,2724.7,0.0903384]
[1646870807585,0.91811,2725.1,2724.5,0.18325229]
[1646870807783,0.91811,2725.1,2724.6,1.52390574]
[1646870808184,1.35711,2725.1,2724.6,1.52390574]
[1646870809089,1.08540418,2725.0,2724.6,1.52390574]
[1646870809287,1.8366,2724.9,2724.6,1.52390574]
[1646870810293,1.8366,2724.9,2724.7,0.15593177]
[1646870810592,1.8366,2724.9,2724.7,0.16975716]
[1646870811025,1.8366,2724.9,2724.8,1.52398203]
[1646870811428,3.00369418,2725.0,2724.8,1.52398203]
[1646870811429,0.91829,2725.0,2724.8,1.52398203]
[1646870811628,0.91829,2725.0,2724.9,0.07679846]
[1646870811834,0.91829,2725.0,2724.9,1.60078049]
[1646870812432,3.98060558,2725.6,2725.0,0.08146595]
[1646870812433,0.91649432,2725.6,2725.0,0.08146595]
[1646870812630,1.1364,2726.1,2725.1,3.72745653]
[1646870812631,0.0034484,2726.0,2725.1,3.72745653]
[1646870812831,0.0034484,2726.0,2725.3,0.07951296]
[1646870813130,0.0034484,2726.0,2725.5,0.07249541]
[1646870813329,0.0034484,2726.0,2725.6,1.52398203]
[1646870813529,0.0213,2726.5,2725.8,0.9177175]
[1646870813731,1.0898151,2726.5,2726.0,0.01034519]
[1646870814032,0.91773,2726.2,2726.0,0.01034519]
[1646870814900,0.91980786,2726.2,2726.0,0.01034519]
[1646870815895,0.91773,2726.2,2726.0,0.01034519]
[1646870816298,0.91980786,2726.2,2726.0,0.01034519]
[1646870817215,0.91773,2726.2,2726.0,0.01034519]
[1646870817502,0.92140628,2726.2,2726.0,0.01034519]
[1646870817897,1.36040628,2726.2,2726.0,0.01034519]
[1646870818326,1.35673,2726.2,2726.0,0.01034519]
[1646870818524,1.36040628,2726.2,2726.0,0.01034519]
[1646870819526,1.36040628,2726.2,2725.2,0.00213094]
[1646870819527,3.4,2726.1,2725.2,0.00213094]
[1646870819730,0.91806,2725.8,2725.1,1.52380304]
[1646870819929,0.91806,2725.8,2725.3,0.07366059]
[1646870820234,0.02,2725.4,2724.9,0.00213094]
[1646870820469,0.89710512,2725.8,2725.1,1.52383928]
[1646870820631,0.89710512,2725.8,2724.5,0.01372156]
[1646870820632,3.0,2725.7,2724.5,0.0158525]
[1646870820836,0.91808,2725.4,2724.7,0.00213094]
[1646870821031,0.91808,2725.4,2724.6,0.08407911]
[1646870821032,0.58024098,2725.3,2724.6,0.08407911]
[1646870821231,0.58024098,2725.3,2724.5,0.01371914]
[1646870821431,6.4,2725.2,2724.5,0.01371914]
[1646870821635,1.62847007,2725.1,2724.5,0.01371914]
[1646870822102,0.91845,2725.0,2724.0,0.02867704]
[1646870822281,3.529,2724.9,2724.3,0.01346203]
[1646870822586,0.04975268,2724.8,2724.3,0.01346203]
[1646870822783,0.529,2724.7,2724.3,0.01346203]
[1646870822979,1.05811592,2724.6,2724.4,1.52431764]
[1646870823180,0.529,2724.5,2724.4,1.52431764]
[1646870823378,0.529,2724.5,2724.1,1.52768321]
[1646870823580,0.44196,2724.5,2724.1,1.52768321]
[1646870823781,2.80555268,2724.8,2724.3,0.08284069]
[1646870823782,1.0,2724.8,2724.3,0.08284069]
[1646870823980,1.0,2724.7,2724.4,1.52431764]
[1646870824180,1.529,2724.8,2724.4,1.52431764]
[1646870824181,1.829,2724.8,2724.4,1.52431764]
[1646870824380,0.529,2724.8,2724.4,1.52431764]
[1646870824784,1.83688,2724.5,2724.4,1.52431764]
[1646870828042,1.91831,2724.7,2724.4,1.52431764]
[1646870828238,0.91831,2724.7,2724.5,1.52431764]
[1646870828443,0.91831,2724.7,2724.6,1.60023579]
[1646870830782,0.91831,2724.7,2724.4,0.25215396]
[1646870830783,3.4,2724.6,2724.4,0.25215396]
[1646870831184,4.4,2724.6,2724.4,0.25215396]
[1646870831389,3.4,2724.6,2724.4,0.25215396]
[1646870831589,4.4,2724.6,2724.4,0.25215396]
[1646870832182,1.83713,2724.5,2724.1,0.00324135]
[1646870832385,0.529,2724.4,2724.1,0.00324135]
[1646870833191,0.91856,2724.3,2724.1,0.00324135]
[1646870833427,1.44756,2724.3,2724.1,0.00324135]
[1646870833630,1.33368643,2724.3,2724.1,0.00324135]
[1646870833832,0.2232,2724.2,2724.1,0.00324135]
[1646870834441,4.03578114,2725.6,2724.2,4.06959999]
[1646870834442,2.87658114,2725.6,2724.2,4.06959999]
[1646870834636,0.5,2725.8,2725.3,0.029168]
[1646870834837,0.5,2725.8,2725.4,0.9177346]
[1646870835034,0.1897161,2726.4,2725.8,3.4]
[1646870835234,0.1897161,2726.4,2726.3,0.029168]
[1646870835633,7.32,2727.4,2726.3,1.73649233]
[1646870835840,2.2705,2728.2,2726.8,0.93460482]
[1646870835841,1.1351956,2727.5,2726.8,0.93460482]
[1646870836033,0.19001967,2728.1,2726.9,0.08352308]
[1646870836236,0.19001967,2728.1,2727.1,0.029168]
[1646870836435,9.15414,2728.5,2727.1,0.029168]
[1646870836636,1.83414,2728.5,2727.5,0.029168]
[1646870836833,1.83414,2728.5,2727.5,0.946228]
[1646870836834,2.02403532,2728.5,2727.5,0.946228]
[1646870837097,1.20765427,2728.1,2727.7,0.074211]
[1646870837282,0.019251,2728.7,2727.7,0.074211]
[1646870837485,0.019251,2728.7,2727.9,0.029168]
[1646870837683,0.91702,2728.6,2727.9,0.029168]
[1646870837886,0.019251,2728.7,2727.9,0.029168]
[1646870838083,0.019251,2728.7,2728.0,0.9169903]
[1646870838284,0.019251,2728.7,2728.2,0.07422975]
[1646870838487,0.1898977,2729.0,2728.2,0.07422975]
[1646870839085,0.1898977,2729.0,2728.3,1.39907964]
[1646870839282,0.1898977,2729.0,2728.4,0.37264736]
[1646870839486,1.11975945,2729.0,2728.4,0.37264736]
[1646870839690,1.11975945,2729.0,2728.4,0.07264736]
[1646870839887,1.11975945,2729.0,2727.8,0.08163716]
[1646870839888,4.41691,2728.9,2727.8,0.08163716]
[1646870840489,4.17894405,2728.8,2727.4,0.07399778]
[1646870840730,3.26170405,2728.8,2727.4,0.07399778]
[1646870840931,1.22682316,2728.1,2727.4,0.07399778]
[1646870841135,1.22682316,2728.1,2727.5,0.9171588]
[1646870841334,1.22682316,2728.1,2727.7,0.08174981]
[1646870841532,1.22682316,2728.1,2727.1,0.07588899]
[1646870841931,0.91733,2727.9,2727.1,0.07588899]
[1646870842330,1.08822455,2727.5,2727.1,0.07588899]
[1646870843536,1.08822455,2727.5,2726.9,0.13624485]
[1646870843537,3.5,2727.4,2726.9,0.13624485]
[1646870843748,3.5,2727.4,2726.2,1.83706864]
[1646870843749,0.529,2727.3,2726.4,0.08957479]
[1646870843936,0.529,2727.3,2726.1,0.00213094]
[1646870843937,3.5,2727.2,2726.1,0.00213094]
[1646870844133,3.5,2727.2,2725.9,0.00213094]
[1646870844134,0.529,2727.1,2725.9,0.00213094]
[1646870844334,1.0,2726.9,2725.8,0.029168]
[1646870844592,0.91774,2726.6,2725.8,0.029168]
[1646870844782,0.91774,2726.6,2726.0,0.08512461]
[1646870845180,0.98736529,2726.4,2726.0,0.08512461]
[1646870845381,1.0,2726.9,2726.5,0.08679901]
[1646870845583,1.83535,2726.7,2726.5,0.08679901]
[1646870846082,0.529,2726.7,2726.5,0.07133708]
[1646870847486,0.53268732,2726.7,2726.5,0.07133708]
[1646870848330,0.529,2726.7,2726.5,0.07133708]
[1646870848730,0.53268732,2726.7,2726.5,0.07133708]
[1646870849635,0.529,2726.7,2726.5,0.07133708]
[1646870849837,0.53268732,2726.7,2726.5,0.07133708]
[1646870850040,2.36804732,2726.7,2726.6,0.17697662]
[1646870850845,2.36804732,2726.7,2725.5,0.029168]
[1646870850846,3.4,2726.6,2725.5,0.029168]
[1646870851042,3.4,2726.6,2725.3,0.13819997]
[1646870851043,4.029,2726.5,2725.6,0.00211211]
[1646870851281,4.029,2726.5,2725.4,0.00211211]
[1646870851282,0.91801,2725.6,2725.4,0.00211211]
[1646870851443,1.44701,2725.6,2725.3,0.00162361]
[1646870851845,1.44701,2725.6,2724.9,0.07113771]
[1646870852122,1.44701,2725.6,2724.4,0.03128011]
[1646870852339,1.0,2725.4,2725.3,0.00369579]
[1646870852509,1.529,2725.4,2725.3,0.00369579]
[1646870852708,2.53637885,2725.4,2725.3,0.00369579]
[1646870853109,2.53637885,2725.4,2724.6,0.00211211]
[1646870853307,2.53637885,2725.4,2724.4,0.10038621]
[1646870853515,3.5,2725.3,2724.4,0.07121821]
[1646870853710,1.0,2724.8,2724.4,0.07121821]
[1646870853908,1.529,2724.8,2724.4,0.07121821]
[1646870854508,1.529,2724.8,2724.4,0.10038621]
[1646870854509,0.529,2724.8,2724.4,0.10038621]
[1646870855313,7.613,2725.6,2724.7,0.029168]
[1646870855314,0.529,2725.2,2724.7,0.029168]
[1646870855527,0.529,2725.2,2725.0,0.07259096]
[1646870855946,0.529,2725.2,2724.7,0.029168]
[1646870856141,1.03301345,2725.1,2724.7,0.029168]
[1646870856745,1.95113345,2725.1,2724.7,0.029168]
[1646870856940,1.95113345,2725.1,2724.8,0.00351686]
[1646870857942,1.95113345,2725.1,2724.7,0.029168]
[1646870858142,1.95113345,2725.1,2724.8,0.00351683]
[1646870858343,2.48013345,2725.1,2724.8,0.00351683]
[1646870859144,2.48013345,2725.1,2724.7,0.029168]
[1646870859348,2.48013345,2725.1,2724.8,0.00351683]
[1646870859787,2.50244626,2725.1,2724.8,0.00351683]
[1646870859986,0.55131281,2725.1,2724.8,0.00351683]
[1646870860386,0.55131281,2725.1,2724.7,0.11046981]
[1646870860688,0.55131281,2725.1,2724.8,0.00351683]
[1646870860988,0.55131281,2725.1,2724.8,1.21027805]
[1646870861188,0.02231281,2725.1,2725.0,0.029168]
[1646870861398,0.02231281,2725.1,2725.0,0.396968]
[1646870861597,0.02231281,2725.1,2725.0,0.09862672]
[1646870864432,0.02231281,2725.1,2725.0,0.06945872]
[1646870865044,0.02479575,2725.1,2725.0,0.06945872]
[1646870865338,0.91797,2725.6,2725.4,1.57818486]
[1646870865539,0.529,2726.1,2725.5,0.08962539]
[1646870865540,0.5323723,2726.1,2725.5,0.08962539]
[1646870866440,0.529,2726.1,2725.5,0.08962539]
[1646870866639,0.529,2726.1,2725.4,1.87818486]
[1646870866640,1.18720918,2725.8,2725.7,0.07908054]
[1646870866842,1.71620918,2725.8,2725.5,0.08829541]
[1646870867895,0.529,2725.8,2725.6,0.029168]
[1646870869196,1.67392786,2725.8,2725.6,0.029168]
[1646870870098,1.67392786,2725.8,2725.6,0.17597101]
[1646870870299,0.529,2725.8,2725.6,0.17597101]
[1646870871943,0.0032534,2726.1,2725.7,0.10366195]
[1646870872144,0.0032534,2726.1,2726.0,0.029168]
[1646870872543,0.529,2726.9,2726.1,0.91752]
[1646870872739,1.05405288,2726.6,2726.2,0.11469346]
[1646870873178,1.58305288,2726.6,2726.2,0.08552546]
[1646870873437,1.58305288,2726.6,2726.0,0.029168]
[1646870873638,1.58305288,2726.6,2726.2,0.029168]
[1646870873841,0.00325713,2726.5,2726.2,0.029168]
[1646870874041,0.00325713,2726.5,2726.3,0.089926]
[1646870874241,0.00325713,2726.5,2726.0,0.1098396]
[1646870874440,0.529,2726.4,2726.0,0.029168]
[1646870875488,0.88153116,2726.1,2726.0,0.029168]
[1646870875694,0.88153116,2726.1,2726.0,0.1153456]
[1646870876492,0.88153116,2726.1,2726.0,0.0861776]
[1646870877187,0.00325993,2726.2,2726.0,0.0861776]
[1646870877390,1.44669,2726.4,2726.0,0.0861776]
[1646870877588,0.00325993,2726.2,2726.0,0.0861776]
[1646870878482,1.44669,2726.4,2725.9,0.329168]
[1646870878635,0.90391906,2726.1,2725.9,0.40931849]
[1646870880237,0.90391906,2726.1,2726.0,0.25920706]
[1646870880442,1.43291906,2726.1,2726.0,0.17543065]
[1646870880837,2.43291906,2726.1,2726.0,0.17543065]
[1646870886285,1.90391906,2726.1,2726.0,0.17543065]
[1646870888542,1.90391906,2726.1,2726.0,3.87543065]
[1646870889587,2.34491906,2726.1,2726.0,3.87543065]
[1646870890190,2.34491906,2726.1,2726.0,3.87402289]
[1646870891093,1.34491906,2726.1,2726.0,3.87402289]
[1646870891298,1.34491906,2726.1,2726.0,3.90319089]
[1646870891499,0.00347413,2726.2,2726.1,0.0860667]
[1646870891696,0.441,2726.6,2726.1,0.0860667]
[1646870891891,0.441,2726.6,2726.2,0.029168]
[1646870892296,0.91763,2726.5,2726.1,0.0860667]
[1646870892493,0.91763,2726.5,2726.0,3.87402289]
[1646870892494,0.441,2726.4,2726.0,3.87402289]
[1646870892692,0.89084623,2726.3,2726.0,3.97565531]
[1646870893340,0.89431968,2726.3,2726.0,3.97565531]
[1646870894137,0.89084623,2726.3,2726.0,3.97565531]
[1646870894539,0.89420592,2726.3,2726.0,3.97565531]
[1646870895345,0.89084623,2726.3,2726.0,3.97565531]
[1646870895544,0.89420592,2726.3,2726.0,3.97565531]
[1646870896145,0.91773,2726.2,2726.0,3.94648731]
[1646870896347,0.91773,2726.2,2726.0,3.87402289]
[1646870896348,1.35873,2726.2,2726.0,3.87402289]
[1646870896744,2.35873,2726.2,2726.0,3.87402289]
[1646870896946,2.36208972,2726.2,2726.0,3.87402289]
[1646870897786,2.35873,2726.2,2726.0,3.87402289]
[1646870897990,2.36197443,2726.2,2726.0,3.87402289]
[1646870898990,2.35873,2726.2,2726.0,3.87402289]
[1646870899189,2.36197443,2726.2,2726.0,3.87402289]
[1646870899994,2.36197443,2726.2,2726.1,0.03737374]
[1646870900196,2.35873,2726.2,2726.1,0.03737374]
[1646870900496,2.36197443,2726.2,2726.1,0.03737374]
[1646870901346,2.35873,2726.2,2726.1,0.03737374]
[1646870903661,0.89410227,2726.3,2726.1,0.06654174]
[1646870903954,0.89410227,2726.3,2726.2,0.029168]
[1646870903955,0.89084623,2726.3,2726.2,0.029168]
[1646870904149,0.89410227,2726.3,2726.2,0.029168]
[1646870904589,0.89410227,2726.3,2726.1,0.14928852]
[1646870904991,0.89410227,2726.3,2726.1,0.27567465]
[1646870904992,0.89084623,2726.3,2726.1,0.27567465]
[1646870905190,0.89084623,2726.3,2726.1,0.23830091]
[1646870906798,0.89084623,2726.3,2726.1,0.20913291]
[1646870906995,1.33184623,2726.3,2726.1,0.12638613]
[1646870907595,4.83184623,2726.3,2726.0,3.73704637]
[1646870907794,1.83574,2726.2,2726.0,3.73704637]
[1646870907994,0.441,2726.1,2726.0,3.73704637]
[1646870908846,6.33928057,2726.2,2726.0,3.73704637]
[1646870909042,4.029,2726.1,2726.0,3.73704637]